bitfinex/quotes_SOLUSD_20240808
["timestamp","ask_amount","ask_price","bid_price","bid_amount"]
[1723086684211,15.0792,155.3,155.18,43.1792]
[1723086684383,43.5987,155.31,155.19,45.0]
[1723086684578,37.16,155.31,155.19,45.0]
[1723086685388,37.16,155.31,155.2,38.44670977]
[1723086685589,37.16,155.33,155.21,46.2866732]
[1723086686197,37.16,155.34,155.22,78.7121]
[1723086686398,6.4383,155.32,155.22,41.5521]
[1723086687012,37.16,155.34,155.22,21.5521]
[1723086687013,6.4396,155.29,155.22,21.5521]
[1723086687318,6.44,155.28,155.22,21.5521]
[1723086687487,0.17,155.27,155.22,6.0063]
[1723086689209,51.7812,155.25,155.18,6.0063]
[1723086690410,6.4446,155.17,155.14,6.0063]
[1723086690614,37.16,155.18,155.11,15.5458]
[1723086690817,0.17,155.16,155.1,6.0063]
[1723086691200,6.4454,155.15,155.1,6.0063]
[1723086691508,45.17,155.17,155.06,6.0063]
[1723086691509,37.5,155.14,155.06,6.0063]
[1723086691987,0.34,155.14,155.06,6.0063]
[1723086692193,37.16,155.18,155.07,37.16]
[1723086692493,0.17,155.17,155.07,37.16]
[1723086693094,37.16,155.22,155.09,37.16]
[1723086693302,37.16,155.2,155.09,37.16]
[1723086693518,0.17,155.19,155.07,37.16]
[1723086693689,0.17,155.19,155.08,20.0]
[1723086694019,0.17,155.2,155.09,1.03496709]
[1723086694307,0.34,155.2,155.1,1.0349236]
[1723086694516,8.95987663,155.25,155.11,1.03485687]
[1723086694691,6.4414,155.25,155.12,6.0993]
[1723086695010,6.4407,155.27,155.13,46.03472345]
[1723086695220,6.4408,155.26,155.14,20.0]
[1723086695514,6.4402,155.28,155.15,46.04137448]
[1723086695697,6.4405,155.27,155.15,46.04137448]
[1723086696412,6.4405,155.27,155.15,45.0]
[1723086697208,45.34,155.26,155.15,45.0]
[1723086697418,0.34,155.26,155.15,45.0]
[1723086697907,269.1395,155.3,155.16,6.3475]
[1723086698225,15.5395,155.3,155.17,65.0]
[1723086698591,6.4397,155.29,155.17,65.0]
[1723086698798,15.5395,155.3,155.17,65.0]
[1723086699010,6.69737245,155.31,155.19,54.0443]
[1723086699308,9.94961861,155.37,155.2,65.17]
[1723086699498,13.13154275,155.36,155.21,0.17]
[1723086699712,9.94961861,155.37,155.21,0.17]
[1723086699911,9.94961861,155.37,155.22,6.3244]
[1723086700092,6.69343581,155.39,155.23,65.34]
[1723086700292,6.4364,155.37,155.23,65.17]
[1723086700494,6.4358,155.38,155.24,0.17]
[1723086700909,9.94961861,155.41,155.26,6.3244]
[1723086701087,9.94961861,155.41,155.27,65.34]
[1723086701088,6.4346,155.41,155.27,65.34]
[1723086701289,6.4346,155.41,155.27,65.0]
[1723086701503,6.69183425,155.42,155.27,65.0]
[1723086701888,6.69183425,155.42,155.28,0.34]
[1723086702109,13.12613425,155.42,155.28,1.62713235]
[1723086702509,6.4346,155.41,155.28,0.34]
[1723086703219,6.69183425,155.42,155.28,0.34]
[1723086704100,13.12613425,155.42,155.28,0.34]
[1723086704299,6.69183425,155.42,155.28,0.34]
[1723086704506,2.90506001,155.44,155.28,0.34]
[1723086704507,0.36,155.44,155.31,15.0178]
[1723086704819,0.36,155.44,155.32,65.17]
[1723086705019,0.36,155.44,155.32,66.45693749]
[1723086705321,0.36,155.44,155.33,54.3497]
[1723086705521,0.36,155.44,155.34,65.17]
[1723086705695,0.36,155.44,155.36,6.5397]
[1723086705900,0.36,155.44,155.37,65.0]
[1723086706702,0.36,155.44,155.36,6.5397]
[1723086707441,0.17,155.43,155.31,21.2979]
[1723086707603,6.4354,155.39,155.31,21.2979]
[1723086707798,0.17,155.38,155.31,6.2801]
[1723086708016,0.34,155.38,155.31,6.2801]
[1723086708539,6.4365,155.37,155.31,6.2801]
[1723086708699,0.17,155.36,155.27,15.7915]
[1723086708908,20.0,155.34,155.16,6.1628]
[1723086709202,39.37,155.34,155.16,6.1628]
[1723086709430,45.34,155.33,155.16,6.1628]
[1723086709802,6.4387,155.31,155.17,47.81]
[1723086710105,0.17,155.3,155.17,47.81]
[1723086710422,0.17,155.33,155.22,22.4164]
[1723086710631,6.2611,155.4,155.22,22.4164]
[1723086710802,16.6281,155.41,155.23,0.47008906]
[1723086711003,16.6281,155.41,155.22,22.4164]
[1723086711004,0.36,155.44,155.26,6.2451]
[1723086711334,6.4338,155.43,155.27,21.45707056]
[1723086711508,0.36,155.44,155.29,47.31]
[1723086711703,0.36,155.44,155.3,46.4569348]
[1723086711920,6.7934,155.44,155.3,46.2869348]
[1723086712428,0.36,155.44,155.31,42.4164]
[1723086712624,6.4339,155.43,155.32,45.0]
[1723086712827,0.34,155.42,155.32,46.28710106]
[1723086713127,0.17,155.43,155.32,45.0]
[1723086713734,0.36,155.44,155.33,1.2869856]
[1723086714204,0.36,155.44,155.35,6.2451]
[1723086714404,0.36,155.44,155.36,1.62644077]
[1723086714614,0.36,155.44,155.36,66.62644077]
[1723086714915,0.36,155.44,155.36,66.45644077]
[1723086715330,0.36,155.44,155.36,66.28644077]
[1723086715509,0.36,155.44,155.36,65.0]
[1723086715705,0.36,155.44,155.37,1.28659695]
[1723086716723,0.36,155.44,155.38,0.34]
[1723086716934,0.36,155.44,155.39,1.28634673]
[1723086717114,0.36,155.44,155.4,1.28626395]
[1723086717631,0.36,155.44,155.38,1.62637774]
[1723086718020,0.36,155.44,155.38,1.28637774]
[1723086718531,0.36,155.44,155.36,20.0]
[1723086718933,0.36,155.44,155.35,6.2451]
[1723086719118,0.17,155.43,155.35,6.2451]
[1723086719316,0.34,155.43,155.35,6.2451]
[1723086722208,6.436,155.38,155.3,6.0093]
[1723086722409,0.34,155.43,155.31,1.28752783]
[1723086723142,0.34,155.43,155.3,6.0093]
[1723086723316,0.34,155.43,155.31,1.28655373]
[1723086723511,0.17,155.43,155.31,1.28655373]
[1723086723708,0.17,155.43,155.32,0.17]
[1723086723937,0.36,155.44,155.33,15.7728]
[1723086724152,0.36,155.44,155.34,65.17]
[1723086724338,0.36,155.44,155.34,65.0]
[1723086724935,0.36,155.44,155.36,6.4085]
[1723086725739,0.36,155.44,155.37,46.28531441]
[1723086726042,0.36,155.44,155.36,6.4085]
[1723086727413,0.36,155.44,155.37,45.0]
[1723086728332,0.36,155.44,155.38,20.34]
[1723086728518,0.36,155.44,155.39,45.0]
[1723086728857,0.36,155.44,155.4,20.34]
[1723086729046,0.36,155.44,155.41,45.0]
[1723086729247,0.36,155.44,155.42,20.0]
[1723086729537,0.36,155.44,155.43,45.0]
[1723086731049,0.36,155.44,155.42,20.0]
[1723086731371,0.36,155.44,155.37,20.0]
[1723086731526,0.36,155.44,155.38,0.344737]
[1723086732528,0.36,155.44,155.36,6.75325918]
[1723086732739,0.36,155.44,155.36,6.4085]
[1723086733532,0.36,155.44,155.25,19.48951512]
[1723086733853,0.34,155.43,155.27,47.67]
[1723086734647,6.4342,155.42,155.27,47.67]
[1723086734847,45.34,155.41,155.27,47.67]
[1723086735053,0.17,155.4,155.26,22.4731]
[1723086735441,0.17,155.4,155.26,6.3449]
[1723086735847,6.4355,155.39,155.26,6.3449]
[1723086736047,45.34,155.38,155.26,6.3449]
[1723086736257,0.17,155.38,155.26,6.3449]
[1723086736432,6.9312,155.44,155.27,47.67]
[1723086736631,6.4363,155.37,155.26,6.3449]
[1723086736851,39.37,155.43,155.27,20.0]
[1723086737232,6.4358,155.38,155.27,20.0]
[1723086737435,20.0,155.43,155.27,20.0]
[1723086737739,6.9312,155.44,155.28,45.0]
[1723086737944,13.3645,155.44,155.29,21.20964303]
[1723086738158,13.3645,155.44,155.3,45.0]
[1723086738345,13.3645,155.44,155.31,1.20948725]
[1723086738346,6.9312,155.44,155.31,1.20948725]
[1723086738865,6.9312,155.44,155.31,21.20948725]
[1723086739038,6.4346,155.41,155.31,20.0]
[1723086739243,6.9312,155.44,155.26,6.3449]
[1723086739451,6.9312,155.44,155.27,112.84]
[1723086739762,13.3646,155.44,155.27,112.84]
[1723086739931,6.9312,155.44,155.27,112.84]
[1723086740337,6.9312,155.44,155.28,1.21211326]
[1723086740541,0.36,155.44,155.29,0.34]
[1723086740775,0.36,155.44,155.31,63.6864]
[1723086740945,0.36,155.44,155.32,45.34]
[1723086741342,0.36,155.44,155.33,20.0]
[1723086741560,0.36,155.44,155.34,51.5561]
[1723086741759,0.36,155.44,155.35,20.0]
[1723086741947,0.36,155.44,155.36,45.34]
[1723086742743,0.36,155.44,155.37,20.0]
[1723086742975,0.36,155.44,155.38,45.17]
[1723086743264,0.36,155.44,155.39,20.0]
[1723086743465,0.36,155.44,155.4,45.0]
[1723086743980,0.36,155.44,155.39,20.0]
[1723086744174,0.36,155.44,155.36,20.17]
[1723086744473,0.36,155.44,155.37,45.17]
[1723086744973,0.36,155.44,155.38,20.0]
[1723086745148,0.36,155.44,155.39,45.0]
[1723086746279,0.36,155.44,155.38,20.0]
[1723086746450,0.36,155.44,155.32,2.57511732]
[1723086746649,0.36,155.44,155.35,45.34]
[1723086746846,0.36,155.44,155.32,2.57511732]
[1723086747877,0.36,155.44,155.35,20.0]
[1723086748245,0.36,155.44,155.36,45.0]
[1723086748443,0.36,155.44,155.37,20.0]
[1723086749175,0.36,155.44,155.38,45.17]
[1723086749353,0.36,155.44,155.37,20.0]
[1723086749672,0.36,155.44,155.38,45.0]
[1723086749858,0.36,155.44,155.37,45.0]
[1723086750067,0.36,155.44,155.38,20.0]
[1723086750262,0.36,155.44,155.39,45.0]
[1723086750464,0.36,155.44,155.39,46.19104449]
[1723086751263,0.36,155.44,155.4,21.19097645]
[1723086751475,0.36,155.44,155.41,45.0]
[1723086751669,0.36,155.44,155.42,1.19096741]
[1723086752867,0.36,155.44,155.41,45.17]
[1723086753055,0.36,155.44,155.41,45.0]
[1723086753581,0.36,155.44,155.42,0.17]
[1723086753901,0.36,155.44,155.41,45.0]
[1723086754379,0.36,155.44,155.4,20.0]
[1723086754584,0.36,155.44,155.35,20.0]
[1723086756770,0.36,155.44,155.36,45.0]
[1723086756978,0.36,155.44,155.37,20.17]
[1723086757171,0.36,155.44,155.38,45.0]
[1723086757476,0.36,155.44,155.39,20.0]
[1723086759900,0.36,155.44,155.4,46.28633223]
[1723086760091,0.36,155.44,155.4,45.0]
[1723086760297,0.36,155.44,155.41,1.28608391]
[1723086760699,0.36,155.44,155.4,46.28608391]
[1723086761007,0.36,155.44,155.4,45.0]
[1723086761300,0.36,155.44,155.4,1.09062089]
[1723086762193,0.36,155.44,155.4,1.16510323]
[1723086762983,0.36,155.44,155.41,0.17]
[1723086763189,0.36,155.44,155.42,1.1649533]
[1723086764595,0.36,155.44,155.43,6.4636]
[1723086764800,16.1008,155.54,155.43,71.8036]
[1723086765004,16.1008,155.54,155.44,65.34]
[1723086766121,16.1008,155.54,155.46,47.67]
[1723086766286,6.537,155.56,155.47,66.62396081]
[1723086766996,16.582,155.58,155.47,66.62396081]
[1723086767716,16.582,155.58,155.47,65.34]
[1723086767920,16.582,155.58,155.47,65.17]
[1723086768288,0.17,155.57,155.47,20.0]
[1723086768489,0.34,155.57,155.47,20.0]
[1723086768685,45.34,155.57,155.44,20.0]
[1723086768926,45.34,155.57,155.45,0.43253576]
[1723086769228,16.582,155.58,155.45,0.43253576]
[1723086769712,16.582,155.58,155.46,48.01]
[1723086769916,16.582,155.58,155.47,65.43252481]
[1723086770109,16.582,155.58,155.48,0.34]
[1723086770304,16.582,155.58,155.48,1.62550604]
[1723086770719,16.582,155.58,155.49,1.28542338]
[1723086770908,16.582,155.58,155.47,65.0]
[1723086770909,16.582,155.58,155.47,45.0]
[1723086773201,16.582,155.58,155.48,20.34]
[1723086773404,16.582,155.58,155.49,45.0]
[1723086776116,16.582,155.58,155.48,20.0]
[1723086776318,16.582,155.58,155.43,6.4636]
[1723086776319,45.34,155.57,155.44,20.0]
[1723086777600,0.34,155.57,155.44,20.0]
[1723086777825,45.34,155.57,155.44,20.63582507]
[1723086778014,45.34,155.57,155.44,20.0]
[1723086778213,51.768,155.57,155.44,20.0]
[1723086778532,51.768,155.57,155.41,56.57193597]
[1723086778533,21.9663,155.56,155.39,47.67]
[1723086778828,0.34,155.55,155.39,47.67]
[1723086779033,0.17,155.55,155.39,56.57193597]
[1723086779199,21.9663,155.56,155.39,56.57193597]
[1723086779398,0.17,155.55,155.43,47.67]
[1723086779604,21.9663,155.56,155.43,47.67]
[1723086779818,21.9663,155.56,155.44,65.34]
[1723086780926,0.17,155.55,155.44,65.34]
[1723086781617,21.9663,155.56,155.44,65.34]
[1723086782337,21.9663,155.56,155.44,45.17]
[1723086782911,0.17,155.55,155.44,45.17]
[1723086783111,0.34,155.55,155.44,45.17]
[1723086783313,0.34,155.55,155.43,47.67]
[1723086783511,45.34,155.55,155.43,47.67]
[1723086783825,45.34,155.55,155.45,37.02]
[1723086784014,45.34,155.55,155.43,37.02]
[1723086784217,53.2751,155.54,155.41,37.02]
[1723086784418,16.2551,155.51,155.38,2.57288341]
[1723086784729,0.17,155.5,155.4,37.02]
[1723086784937,0.34,155.5,155.4,37.02]
[1723086785631,0.17,155.5,155.44,37.02]
[1723086785836,16.2551,155.51,155.39,47.6]
[1723086786140,0.17,155.5,155.39,47.6]
[1723086786322,45.34,155.5,155.4,20.0]
[1723086786635,0.34,155.5,155.34,50.14966981]
[1723086786941,51.7709,155.5,155.35,45.34]
[1723086787113,45.34,155.5,155.35,45.34]
[1723086787436,6.6133,155.46,155.34,47.6]
[1723086787644,51.7729,155.45,155.3,53.7985]
[1723086787809,16.5841,155.44,155.26,14.96273597]
[1723086788014,6.6133,155.42,155.26,17.54351602]
[1723086788234,16.5841,155.4,155.25,73.40846644]
[1723086788425,0.34,155.39,155.25,73.40846644]
[1723086788639,45.34,155.39,155.25,47.6]
[1723086788951,6.6276,155.37,155.21,53.6608]
[1723086789146,61.0888,155.36,155.21,53.6608]
[1723086789436,61.0888,155.36,155.21,47.6]
[1723086789437,61.4288,155.36,155.21,47.6]
[1723086789823,6.4371,155.35,155.21,47.6]
[1723086790021,45.34,155.34,155.21,47.6]
[1723086790419,45.34,155.34,155.22,20.0]
[1723086790624,16.0888,155.36,155.21,47.6]
[1723086790819,16.0888,155.36,155.25,47.6]
[1723086791424,16.0888,155.36,155.26,1.28749032]
[1723086791738,16.0888,155.36,155.26,45.0]
[1723086791922,16.0888,155.36,155.27,20.17]
[1723086792247,16.0888,155.36,155.29,47.6]
[1723086792537,16.0888,155.36,155.3,21.28728597]
[1723086792744,253.6,155.45,155.31,45.0]
[1723086792934,47.6,155.49,155.32,21.45705525]
[1723086792935,15.1981,155.41,155.32,21.45705525]
[1723086793117,15.1981,155.41,155.33,92.6]
[1723086793436,15.1981,155.41,155.34,21.45688954]
[1723086793645,15.1981,155.41,155.35,45.17]
[1723086793817,15.1981,155.41,155.36,20.0]
[1723086794217,15.1981,155.41,155.37,45.0]
[1723086795035,15.1981,155.41,155.34,0.17]
[1723086795337,15.1981,155.41,155.34,65.17]
[1723086795534,15.1981,155.41,155.34,65.0]
[1723086795943,15.1981,155.41,155.34,45.0]
[1723086796118,15.1981,155.41,155.29,47.6]
[1723086796320,0.17,155.4,155.29,47.6]
[1723086796618,0.34,155.4,155.29,47.6]
[1723086797043,0.34,155.4,155.27,1.28591221]
[1723086797044,6.1694,155.39,155.27,1.28591221]
[1723086798220,6.1694,155.39,155.27,46.28591221]
[1723086798538,6.1694,155.39,155.28,20.34]
[1723086798747,6.1694,155.39,155.29,46.28588759]
[1723086798919,45.34,155.38,155.25,47.6]
[1723086799125,45.34,155.38,155.26,45.17]
[1723086799515,45.34,155.38,155.25,47.6]
[1723086799743,6.1694,155.39,155.25,47.6]
[1723086800247,6.1694,155.39,155.26,20.0]
[1723086800449,0.34,155.38,155.26,20.0]
[1723086801050,15.9711,155.37,155.26,21.20221654]
[1723086801545,15.9711,155.37,155.27,1.20213911]
[1723086802050,6.7393,155.36,155.23,1.20330368]
[1723086802223,6.9093,155.36,155.24,1.20322616]
[1723086802925,6.7393,155.36,155.24,1.20322616]
[1723086803122,6.5693,155.36,155.24,1.20322616]
[1723086803323,6.5693,155.36,155.22,9.22042731]
[1723086803324,0.17,155.35,155.23,65.34]
[1723086803544,6.5693,155.36,155.23,65.34]
[1723086803968,0.17,155.35,155.23,65.34]
[1723086804150,0.17,155.35,155.24,1.27226251]
[1723086804329,6.5693,155.36,155.25,0.34]
[1723086804656,6.5693,155.36,155.26,1.27221131]
[1723086804833,6.5693,155.36,155.27,0.17]
[1723086805031,6.5693,155.36,155.27,21.62728588]
[1723086805350,6.5693,155.36,155.28,45.0]
[1723086805554,6.5693,155.36,155.29,69.22712008]
[1723086805852,6.5693,155.36,155.3,45.0]
[1723086806056,6.5693,155.36,155.31,20.0]
[1723086806243,6.5693,155.36,155.29,47.6]
[1723086806444,6.5693,155.36,155.25,45.6]
[1723086806636,6.5693,155.36,155.26,65.17]
[1723086806836,6.5693,155.36,155.26,45.17]
[1723086807137,6.5693,155.36,155.25,45.6]
[1723086807346,6.5693,155.36,155.22,9.22042731]
[1723086807347,0.17,155.35,155.22,9.22042731]
[1723086807729,45.34,155.35,155.22,9.22042731]
[1723086808430,15.6072,155.34,155.22,6.69442795]
[1723086808631,45.34,155.33,155.22,6.69442795]
[1723086808852,45.34,155.33,155.23,20.0]
[1723086809352,15.6072,155.31,155.22,6.69442795]
[1723086809556,15.6072,155.31,155.18,1.27534399]
[1723086809557,0.34,155.3,155.18,1.27534399]
[1723086811151,0.34,155.3,155.18,21.27534399]
[1723086811339,45.34,155.3,155.18,21.27534399]
[1723086811536,45.34,155.3,155.18,1.27534399]
[1723086811749,0.34,155.3,155.18,1.27534399]
[1723086812062,0.17,155.3,155.18,1.27534399]
[1723086812232,0.34,155.3,155.18,1.27534399]
[1723086812432,0.17,155.3,155.19,0.17]
[1723086813152,0.17,155.3,155.18,65.0]
[1723086813462,15.6072,155.31,155.19,1.45817172]
[1723086813637,15.6072,155.31,155.22,47.6]
[1723086813834,15.6072,155.31,155.23,65.0]
[1723086814026,15.6072,155.31,155.22,1.16734634]
[1723086814448,15.6072,155.31,155.23,1.16727123]
[1723086814654,15.6072,155.31,155.19,1.16727129]
[1723086815950,15.6072,155.31,155.2,0.34]
[1723086816153,15.6072,155.31,155.2,21.62787539]
[1723086816369,15.6072,155.31,155.21,46.28779241]
[1723086816568,15.6072,155.31,155.22,67.6]
[1723086816735,15.6072,155.31,155.23,20.0]
[1723086817757,15.6072,155.31,155.24,45.0]
[1723086817964,15.6072,155.31,155.23,20.0]
[1723086818345,15.6072,155.31,155.24,45.0]
[1723086818549,15.6072,155.31,155.23,20.0]
[1723086819059,15.6072,155.31,155.18,47.6]
[1723086819239,15.6072,155.31,155.18,48.88792011]
[1723086819441,15.6072,155.31,155.19,0.17]
[1723086819663,15.6072,155.31,155.2,1.28789205]
[1723086819844,15.6072,155.31,155.21,1.28789692]
[1723086820452,15.6072,155.31,155.22,0.17]
[1723086820657,15.6072,155.31,155.23,1.28774938]
[1723086821650,15.6072,155.31,155.24,1.28775037]
[1723086822457,15.6072,155.31,155.22,1.45775556]
[1723086822639,15.6072,155.31,155.23,0.17]
[1723086822839,15.6072,155.31,155.22,1.28775556]
[1723086823545,15.6072,155.31,155.21,66.45793712]
[1723086823871,15.6072,155.31,155.22,0.34]
[1723086824191,15.6072,155.31,155.23,1.28784241]
[1723086825047,15.6072,155.31,155.22,1.62771323]
[1723086827184,15.6072,155.31,155.21,67.52869216]
[1723086827350,0.17,155.3,155.21,67.52869216]
[1723086827678,0.17,155.3,155.21,20.0]
[1723086827881,45.34,155.3,155.19,20.0]
[1723086829269,45.34,155.3,155.2,45.0]
[1723086829468,15.6072,155.31,155.21,20.17]
[1723086829672,15.6072,155.31,155.22,45.17]
[1723086829845,15.6072,155.31,155.23,20.17]
[1723086830046,15.6072,155.31,155.24,45.17]
[1723086830242,15.6072,155.31,155.25,67.77]
[1723086830473,15.6072,155.31,155.26,45.17]
[1723086830773,15.6072,155.31,155.27,20.0]
[1723086831075,15.6072,155.31,155.28,45.17]
[1723086831283,15.6072,155.31,155.29,20.0]
[1723086831576,15.6072,155.31,155.3,45.0]
[1723086831873,16.0408,155.35,155.3,65.0]
[1723086832051,6.4049,155.38,155.3,65.0]
[1723086832052,6.4049,155.38,155.31,20.0]
[1723086832371,6.4049,155.38,155.32,45.34]
[1723086832668,6.4049,155.38,155.33,20.0]
[1723086833443,6.4049,155.38,155.3,20.17]
[1723086833772,6.4049,155.38,155.31,45.34]
[1723086833996,16.0408,155.39,155.33,47.6]
[1723086834272,16.0408,155.39,155.34,65.34]
[1723086834447,16.0408,155.39,155.34,65.0]
[1723086837558,16.0408,155.39,155.34,20.0]
[1723086837768,16.0408,155.39,155.3,20.0]
[1723086838089,16.0408,155.39,155.31,45.0]
[1723086838264,16.0408,155.39,155.32,20.0]
[1723086838864,16.0408,155.39,155.33,45.0]
[1723086839081,16.0408,155.39,155.34,20.0]
[1723086839282,16.0408,155.39,155.35,45.0]
[1723086840483,16.0408,155.39,155.34,45.0]
[1723086840690,16.0408,155.39,155.35,20.0]
[1723086841363,16.0408,155.39,155.33,47.6]
[1723086841364,16.0408,155.39,155.29,47.6]
[1723086841566,16.0408,155.39,155.3,20.0]
[1723086842261,16.0408,155.39,155.33,47.6]
[1723086842465,6.0106,155.42,155.34,20.17]
[1723086842687,6.0106,155.42,155.35,45.17]
[1723086842866,6.0106,155.42,155.36,20.17]
[1723086843170,6.0106,155.42,155.36,20.0]
[1723086843378,6.0106,155.42,155.29,47.6]
[1723086843895,0.17,155.41,155.29,47.6]
[1723086844067,0.17,155.41,155.3,0.39940809]
[1723086844266,6.0106,155.42,155.3,1.2871812]
[1723086844563,6.0106,155.42,155.33,47.6]
[1723086844770,6.0106,155.42,155.34,1.28684975]
[1723086845190,6.0106,155.42,155.34,21.28684975]
[1723086845386,6.0106,155.42,155.34,20.0]
[1723086845607,6.0106,155.42,155.35,46.28696575]
[1723086845884,15.5813,155.43,155.36,20.17]
[1723086846092,15.5813,155.43,155.36,20.0]
[1723086846794,15.5813,155.43,155.3,47.6]
[1723086846976,0.17,155.42,155.3,47.6]
[1723086847161,15.5813,155.43,155.3,47.6]
[1723086847365,15.5813,155.43,155.34,47.6]
[1723086848264,15.5813,155.43,155.35,65.0]
[1723086848677,15.5813,155.43,155.35,66.28696607]
[1723086848861,0.17,155.42,155.35,20.0]
[1723086849778,0.34,155.42,155.3,47.6]
[1723086850097,45.34,155.42,155.3,47.6]
[1723086851094,6.2665,155.41,155.3,47.6]
[1723086851284,0.17,155.4,155.31,65.0]
[1723086851469,0.17,155.4,155.32,1.28709278]
[1723086853186,16.6398,155.39,155.32,1.28709278]
[1723086853393,16.6398,155.39,155.31,65.0]
[1723086854681,16.6398,155.39,155.31,20.0]
[1723086855383,22.1801,155.49,155.34,47.6]
[1723086855585,22.1801,155.49,155.38,47.6]
[1723086855773,22.1801,155.49,155.39,20.0]
[1723086855974,22.1801,155.49,155.4,0.17]
[1723086856191,22.1801,155.49,155.42,47.6]
[1723086856525,22.1801,155.49,155.43,20.0]
[1723086856664,22.1801,155.49,155.44,45.0]
[1723086858274,22.1801,155.49,155.43,20.0]
[1723086858474,22.1801,155.49,155.41,47.6]
[1723086858695,22.1801,155.49,155.42,65.0]
[1723086859790,22.1801,155.49,155.42,20.0]
[1723086862195,22.1801,155.49,155.43,45.0]
[1723086862405,15.8874,155.49,155.45,47.6]
[1723086862695,22.5729,155.53,155.46,66.28548136]
[1723086863085,22.5729,155.53,155.46,65.0]
[1723086863903,16.1862,155.58,155.46,65.0]
[1723086864287,45.0,155.57,155.46,65.0]
[1723086864507,16.1862,155.58,155.46,65.0]
[1723086865794,45.17,155.57,155.46,65.0]
[1723086866004,45.17,155.57,155.46,20.0]
[1723086866005,0.17,155.56,155.46,20.0]
[1723086866178,6.5985,155.56,155.41,47.6]
[1723086866376,45.17,155.55,155.41,50.11295691]
[1723086866590,22.1978,155.53,155.41,47.6]
[1723086866791,45.17,155.52,155.35,6.0793]
[1723086866998,45.34,155.52,155.35,6.0793]
[1723086867198,45.34,155.52,155.38,47.6]
[1723086867906,0.34,155.52,155.38,47.6]
[1723086868304,45.34,155.52,155.38,47.6]
[1723086868982,45.34,155.52,155.39,20.0]
[1723086869590,45.34,155.52,155.4,45.0]
[1723086869784,45.34,155.52,155.41,20.0]
[1723086870000,51.77,155.52,155.41,20.0]
[1723086870481,45.34,155.52,155.41,20.0]
[1723086871294,16.5391,155.51,155.38,47.6]
[1723086871530,16.5391,155.49,155.34,47.6]
[1723086871810,45.34,155.5,155.3,50.1493972]
[1723086871811,16.5391,155.44,155.3,50.1493972]
[1723086871978,0.17,155.43,155.3,50.1493972]
[1723086872178,45.34,155.43,155.31,7.85306938]
[1723086872379,45.34,155.43,155.31,6.68914175]
[1723086872610,0.34,155.43,155.32,1.16377775]
[1723086872817,0.17,155.43,155.32,1.16377775]
[1723086873109,0.17,155.43,155.31,6.68914175]
[1723086873311,0.34,155.43,155.31,6.68914175]
[1723086873684,16.5391,155.44,155.31,6.68914175]